fUST/lending_fUST_20260111
["ID","MTS","AMOUNT","RATE_DAILY","PERIOD"]
[401297061,1768116645407,-728.00390276,0.00015464,2]
[401297062,1768116645417,-2500.0,0.00015464,2]
[401297063,1768116645426,-2500.0,0.00015464,2]
[401297064,1768116645435,-976.92,0.000158,2]
[401297065,1768116645444,-300.0,0.00015864,2]
[401297066,1768116645454,-555.48898116,0.0001589,2]
[401297067,1768116645463,-2500.0,0.0001589,2]
[401297068,1768116645473,-501.72405702,0.0001589,2]
[401297069,1768116645482,-2500.0,0.0001589,2]
[401297070,1768116645491,-2500.0,0.0001589,2]
[401297071,1768116645501,-2000.0,0.0001589,2]
[401297072,1768116645510,-1634.65901332,0.0001589,2]
[401297073,1768116645519,-3000.0,0.00016012,2]
[401297074,1768116645528,-3000.0,0.00016012,2]
[401297075,1768116645538,-3000.0,0.00016012,2]
[401297076,1768116645547,-3000.0,0.00016012,2]
[401297077,1768116645556,-3000.0,0.00016012,2]
[401297078,1768116645566,-1500.0,0.00016012,2]
[401297079,1768116645575,-1500.0,0.00016012,2]
[401297080,1768116645584,-1000.0,0.00016029,2]
[401297081,1768116645594,-791.0,0.00016029,2]
[401297082,1768116645603,-151.0,0.000161,2]
[401297083,1768116645612,-800.00734843,0.00016164,2]
[401297084,1768116645622,-976.92,0.000163,2]
[401297085,1768116645631,-500.0,0.00016438,2]
[401297086,1768116645641,-500.0,0.00016438,2]
[401297087,1768116645650,-500.0,0.00016438,2]
[401297088,1768116645660,-500.0,0.00016438,2]
[401297090,1768116645669,-500.0,0.00016438,2]
[401297092,1768116645678,-500.0,0.00016438,2]
[401297093,1768116645687,-500.0,0.00016438,2]
[401297095,1768116645697,-281.92486594,0.00016438,2]
[401297096,1768116645707,-594.49843147,0.00016438,2]
[401297097,1768116645716,-468.6,0.00016438,2]
[401297098,1768116645726,-3000.0,0.00016438,2]
[401297099,1768116645736,-502.60955562,0.00016438,2]
[401297100,1768116645745,-1552.92932298,0.00016438,2]
[401297101,1768116645755,-260.15865923,0.00016438,2]
[401297102,1768116645764,-2962.04250286,0.0001656,2]
[401297104,1768116645774,-3500.0,0.0001656,2]
[401297105,1768116645783,-3500.0,0.0001656,2]
[401297106,1768116645793,-3500.0,0.0001656,2]
[401297107,1768116645803,-3500.0,0.0001656,2]
[401297108,1768116645812,-3588.20550987,0.00016786,2]
[401297109,1768116645822,-976.92,0.000168,2]
[401297110,1768116645831,-382.637039,0.00016816,2]
[401297111,1768116645841,-382.637039,0.00016816,2]
[401297112,1768116645850,-382.637039,0.00016816,2]
[401297113,1768116645860,-382.637039,0.00016816,2]
[401297114,1768116645869,-722.76246043,0.00016872,2]
[401297115,1768116645881,-1500.0,0.00016986,2]
[401297116,1768116645896,-3136.69894484,0.00017,2]
[401297117,1768116645910,-4000.0,0.00017108,2]
[401297118,1768116645924,-1988.46116267,0.00017108,2]
[401297119,1768116645934,-4000.0,0.00017108,2]
[401297120,1768116645947,-1000.0,0.00017108,2]
[401297121,1768116645960,-976.92,0.000173,2]
[401297122,1768116645975,-169.882376,0.000173,2]
[401297123,1768116645988,-151.0,0.000173,2]
[401297124,1768116646002,-151.0,0.000173,2]
[401297125,1768116646026,-151.0,0.000173,2]
[401297126,1768116646047,-151.0,0.000173,2]
[401297127,1768116646060,-5000.0,0.00017412,2]
[401297128,1768116646072,-151.0,0.00017412,2]
[401297129,1768116646084,-226.782828,0.00017412,2]
[401297130,1768116646096,-1000.0,0.00017632,2]
[401297131,1768116646109,-1000.0,0.00017632,2]
[401297132,1768116646122,-156.419626,0.00017656,2]
[401297133,1768116646135,-2657.93100212,0.00017656,2]
[401297134,1768116646145,-2000.0,0.00017656,2]
[401297135,1768116646155,-1041.66666667,0.00017747,2]
[401297136,1768116646168,-1231.30854481,0.0001776,2]
[401297137,1768116646180,-178.0,0.00017768,2]
[401297138,1768116646194,-976.92,0.000178,2]
[401297139,1768116646207,-976.92,0.000183,2]
[401297140,1768116646224,-468.6,0.00018315,2]
[401297141,1768116646238,-151.0,0.000186,2]
[401297142,1768116646253,-258.38,0.00018675,2]
[401297143,1768116646268,-3382.93313115,0.00018863,2]
[401297144,1768116646278,-798.40039234,0.00018872,2]
[401297145,1768116646288,-976.92,0.000189,2]
[401297146,1768116646298,-303.10001603,0.000189,2]
[401297147,1768116646311,-303.10001603,0.00019089,2]
[401297148,1768116646324,-258.38,0.00019143,2]
[401297149,1768116646337,-506.7938,0.00019178,2]
[401297150,1768116646347,-221.86,0.00019178,2]
[401297151,1768116646358,-506.7938,0.00019178,2]
[401297152,1768116646371,-167.58,0.000192,2]
[401297153,1768116646385,-2140.41,0.000192,2]
[401297154,1768116646396,-163.88,0.000192,2]
[401297155,1768116646408,-166.96,0.000192,2]
[401297156,1768116646418,-303.10001603,0.00019278,2]
[401297157,1768116646430,-1000.0,0.00019396,2]
[401297158,1768116646442,-1000.0,0.00019396,2]
[401297159,1768116646453,-579.0,0.00019396,2]
[401297160,1768116646464,-16224.21,0.000194,2]
[401297161,1768116646475,-976.92,0.000194,2]
[401297162,1768116646486,-303.10001603,0.00019467,2]
[401297163,1768116646498,-506.7938,0.00019589,3]
[401297164,1768116646509,-506.7938,0.00019589,3]
[401297165,1768116646519,-303.10001603,0.00019656,2]
[401297166,1768116646530,-454.65002405,0.00019845,4]
[401297167,1768116646542,-976.92,0.000199,2]
[401297168,1768116646552,-506.7938,0.0002,4]
[401297169,1768116646563,-151.97857558,0.0002,2]
[401297170,1768116646576,-52113.00553346,0.0002,2]
[401297171,1768116646587,-454.65002405,0.00020034,4]
[401297172,1768116646600,-1231.30854481,0.00020156,2]
[401297173,1768116646612,-468.6,0.00020192,2]
[401297174,1768116646623,-454.65002405,0.00020223,4]
[401297175,1768116646635,-976.92,0.000204,2]
[401297176,1768116646648,-454.65002405,0.00020412,4]
[401297177,1768116646660,-2096.819629,0.00020548,2]
[401297178,1768116646672,-301.57435521,0.00020601,4]
[401297179,1768116646683,-3588.20550987,0.00020793,2]
[401297180,1768116646694,-874.03832424,0.00020872,2]
[401297181,1768116646706,-976.92,0.000209,2]
[401297182,1768116646719,-151.0,0.000212,3]
[401297183,1768116646732,-1000.0,0.00021335,10]
[401297184,1768116646743,-1000.0,0.00021335,10]
[401297185,1768116646755,-1000.0,0.00021335,10]
[401297186,1768116646766,-976.92,0.000214,2]
[401297187,1768116646779,-12011.78673207,0.000215,2]
[401297188,1768116646791,-976.92,0.000219,2]
[401297189,1768116646802,-151.0,0.00021918,2]
[401297190,1768116646815,-151.0,0.00021918,2]
[401297191,1768116646827,-151.0,0.00021918,2]
[401297192,1768116646840,-151.0,0.00021918,2]
[401297193,1768116646851,-151.0,0.00021918,2]
[401297194,1768116646862,-161.096358,0.00021918,2]
[401297195,1768116646874,-151.0,0.00021918,2]
[401297196,1768116646886,-151.0,0.00021918,2]
[401297197,1768116646898,-151.0,0.00021918,2]
[401297198,1768116646909,-151.0,0.00021918,2]
[401297199,1768116646921,-151.0,0.00021918,2]
[401297200,1768116646932,-155.856993,0.00021918,2]
[401297201,1768116646944,-151.0,0.00021918,2]
[401297202,1768116646955,-151.0,0.00021918,2]
[401297203,1768116646966,-151.0,0.00021918,2]
[401297204,1768116646977,-163.313773,0.00021918,2]
[401297205,1768116646988,-700.258706,0.00021918,2]
[401297206,1768116646999,-700.258706,0.00021918,2]
[401297207,1768116647011,-151.0,0.00021918,2]
[401297208,1768116647143,-700.258706,0.00021918,2]
[401297209,1768116647160,-700.258706,0.00021918,2]
[401297210,1768116647171,-151.0,0.00021918,2]
[401297211,1768116647185,-151.0,0.00021918,2]
[401297212,1768116647194,-151.292503,0.00021918,2]
[401297213,1768116647204,-264.224,0.00021918,2]
[401297214,1768116647214,-264.224,0.00021918,2]
[401297215,1768116647227,-264.224,0.00021918,2]
[401297216,1768116647237,-264.224,0.00021918,2]
[401297217,1768116647247,-151.0,0.00021918,2]
[401297218,1768116647258,-151.0,0.00021918,2]
[401297219,1768116647267,-151.0,0.00021918,2]
[401297220,1768116647281,-301.393574,0.00021918,2]
[401297221,1768116647290,-151.0,0.00021918,2]
[401297222,1768116647300,-170.54126,0.00021918,2]
[401297223,1768116647311,-151.0,0.00021918,2]
[401297224,1768116647321,-164.871038,0.00021918,2]
[401297225,1768116647332,-151.0,0.00021918,2]
[401297226,1768116647341,-151.0,0.00021918,2]
[401297227,1768116647351,-151.0,0.00021918,2]
[401297228,1768116647360,-151.0,0.00021918,2]
[401297229,1768116647376,-173.073557,0.00021918,2]
[401297230,1768116647393,-151.0,0.00021918,2]
[401297231,1768116647403,-151.0,0.00021918,2]
[401297232,1768116647415,-151.0,0.00021918,2]
[401297233,1768116647426,-173.073557,0.00021918,2]
[401297234,1768116647435,-151.0,0.00021918,2]
[401297235,1768116647445,-173.073557,0.00021918,2]
[401297236,1768116647456,-173.073557,0.00021918,2]
[401297237,1768116647466,-151.0,0.00021918,2]
[401297238,1768116647475,-151.0,0.00021918,2]
[401297239,1768116647485,-240.800368,0.00021918,2]
[401297240,1768116647494,-151.0,0.00021918,2]
[401297241,1768116647503,-156.82101,0.00021918,2]
[401297242,1768116647514,-151.0,0.00021918,2]
[401297243,1768116647523,-151.0,0.00021918,2]
[401297244,1768116647533,-1371.756404,0.00021918,2]
[401297245,1768116647542,-1371.756404,0.00021918,2]
[401297246,1768116647551,-1371.756404,0.00021918,2]
[401297247,1768116647560,-152.567384,0.00021918,2]
[401297248,1768116647569,-1371.756404,0.00021918,2]
[401297249,1768116647579,-151.0,0.00021918,2]
[401297250,1768116647588,-151.0,0.00021918,2]
[401297251,1768116647597,-151.0,0.00021918,2]
[401297252,1768116647607,-151.0,0.00021918,2]
[401297253,1768116647616,-151.0,0.00021918,2]
[401297254,1768116647626,-225.859576,0.00021918,2]
[401297255,1768116647635,-151.0,0.00021918,2]
[401297256,1768116647644,-151.0,0.00021918,2]
[401297257,1768116647653,-151.0,0.00021918,2]
[401297258,1768116647663,-2377.006451,0.00021918,2]
[401297259,1768116647672,-2377.006451,0.00021918,2]
[401297260,1768116647681,-2377.006451,0.00021918,2]
[401297261,1768116647690,-2377.006451,0.00021918,2]
[401297262,1768116647699,-151.0,0.00021918,2]
[401297263,1768116647709,-151.0,0.00021918,2]
[401297264,1768116647718,-151.0,0.00021918,2]
[401297265,1768116647730,-161.662681,0.00021918,2]
[401297266,1768116647741,-151.0,0.00021918,2]
[401297267,1768116647750,-151.0,0.00021918,2]
[401297268,1768116647760,-728.329358,0.00021918,2]
[401297269,1768116647770,-728.329358,0.00021918,2]
[401297270,1768116647780,-728.329358,0.00021918,2]
[401297271,1768116647790,-728.329358,0.00021918,2]
[401297272,1768116647799,-151.0,0.00021918,2]
[401297273,1768116647808,-151.0,0.00021918,2]
[401297274,1768116647819,-151.0,0.00021918,2]
[401297275,1768116647828,-151.0,0.00021918,2]
[401297276,1768116647837,-152.90727816,0.00021918,2]
[401297277,1768116647847,-468.6,0.00022069,2]
[401297278,1768116647856,-976.92,0.000224,2]
[401297279,1768116647866,-1231.30854481,0.00022552,2]
[401297280,1768116647876,-949.67625615,0.00022872,2]
[401297281,1768116647885,-976.92,0.00023,2]
[401297282,1768116647894,-1000.0,0.00023469,10]
[401297283,1768116647903,-1000.0,0.00023469,10]
[401297284,1768116647915,-1000.0,0.00023469,10]
[401297285,1768116647925,-715.0,0.00023469,10]
[401297286,1768116647934,-976.92,0.000235,2]
[401297287,1768116647945,-151.0,0.000237,7]
[401297288,1768116647963,-468.6,0.00023946,2]
[401297289,1768116647972,-976.92,0.00024,2]
[401297290,1768116647983,-186.81,0.00024,14]
[401297291,1768116647995,-976.92,0.000245,2]
[401297292,1768116648005,-630.83049355,0.0002465,2]
[401297293,1768116648014,-500.0,0.00024658,2]
[401297294,1768116648023,-500.0,0.00024795,2]
[401297295,1768116648039,-151.0,0.000248,7]
[401297296,1768116648054,-151.0,0.000248,7]
[401297297,1768116648063,-151.0,0.000248,7]
[401297298,1768116648073,-151.0,0.000248,7]
[401297299,1768116648082,-66274.5706616,0.000248,2]
[401297300,1768116648091,-3588.20550987,0.000248,2]
[401297301,1768116648101,-1025.31418806,0.00024872,2]
[401297302,1768116648109,-172.824008,0.000249,7]
[401297303,1768116648119,-151.0,0.000249,7]
[401297304,1768116648128,-151.0,0.000249,7]
[401297305,1768116648137,-151.0,0.000249,7]
[401297306,1768116648146,-151.0,0.000249,7]
[401297307,1768116648156,-175.972983,0.000249,7]
[401297308,1768116648165,-151.0,0.000249,7]
[401297309,1768116648174,-151.0,0.000249,7]
[401297310,1768116648184,-151.0,0.000249,7]
[401297311,1768116648194,-153.700094,0.000249,7]
[401297312,1768116648203,-151.0,0.000249,7]
[401297313,1768116648213,-151.0,0.000249,7]
[401297314,1768116648229,-232.476622,0.000249,7]
[401297315,1768116648243,-151.0,0.000249,7]
[401297316,1768116648252,-177.831998,0.000249,7]
[401297317,1768116648261,-151.0,0.000249,7]
[401297318,1768116648272,-151.0,0.000249,7]
[401297319,1768116648281,-382.637039,0.000249,7]
[401297320,1768116648290,-382.637039,0.000249,7]
[401297321,1768116648300,-382.637039,0.000249,7]
[401297322,1768116648309,-382.637039,0.000249,7]
[401297323,1768116648318,-151.0,0.000249,7]
[401297324,1768116648328,-157.400999,0.000249,7]
[401297325,1768116648337,-151.0,0.000249,7]
[401297326,1768116648346,-151.0,0.000249,7]
[401297327,1768116648355,-700.258706,0.000249,7]
[401297328,1768116648364,-700.258706,0.000249,7]
[401297329,1768116648373,-151.0,0.000249,7]
[401297330,1768116648382,-700.258706,0.000249,7]
[401297331,1768116648395,-700.258706,0.000249,7]
[401297332,1768116648404,-151.0,0.000249,7]
[401297333,1768116648413,-151.0,0.000249,7]
[401297334,1768116648422,-264.224,0.000249,7]
[401297335,1768116648433,-264.224,0.000249,7]
[401297336,1768116648444,-264.224,0.000249,7]
[401297337,1768116648456,-264.224,0.000249,7]
[401297338,1768116648470,-192.928076,0.000249,7]
[401297339,1768116648480,-151.0,0.000249,7]
[401297340,1768116648490,-151.0,0.000249,7]
[401297341,1768116648500,-151.0,0.000249,7]
[401297342,1768116648509,-152.205819,0.000249,7]
[401297343,1768116648519,-151.0,0.000249,7]
[401297344,1768116648528,-400097.821185,0.000249,2]
[401297345,1768116648537,-151.0,0.000249,7]
[401297346,1768116648547,-151.0,0.000249,7]
[401297347,1768116648557,-151.0,0.000249,7]
[401297348,1768116648566,-173.073557,0.000249,7]
[401297349,1768116648576,-151.0,0.000249,7]
[401297350,1768116648585,-151.0,0.000249,7]
[401297351,1768116648594,-151.0,0.000249,7]
[401297352,1768116648604,-173.073557,0.000249,7]
[401297353,1768116648614,-151.0,0.000249,7]
[401297354,1768116648623,-173.073557,0.000249,7]
[401297355,1768116648632,-173.073557,0.000249,7]
[401297356,1768116648641,-151.0,0.000249,7]
[401297357,1768116648651,-151.0,0.000249,7]
[401297358,1768116648661,-181.667878,0.000249,7]
[401297359,1768116648670,-151.0,0.000249,7]
[401297360,1768116648680,-160.161373,0.000249,7]
[401297361,1768116648689,-1371.756404,0.000249,7]
[401297362,1768116648699,-1371.756404,0.000249,7]
[401297363,1768116648708,-1371.756404,0.000249,7]
[401297364,1768116648717,-1371.756404,0.000249,7]
[401297365,1768116648727,-151.0,0.000249,7]
[401297366,1768116648736,-151.0,0.000249,7]
[401297367,1768116648746,-151.0,0.000249,7]
[401297368,1768116648755,-151.0,0.000249,7]
[401297369,1768116648764,-151.0,0.000249,7]
[401297370,1768116648775,-151.0,0.000249,7]
[401297371,1768116648786,-151.0,0.000249,7]
[401297372,1768116648795,-151.0,0.000249,7]
[401297373,1768116648804,-151.0,0.000249,7]
[401297374,1768116648814,-2377.006451,0.000249,7]
[401297375,1768116648823,-2377.006451,0.000249,7]
[401297376,1768116648833,-2377.006451,0.000249,7]
[401297377,1768116648844,-2377.006451,0.000249,7]
[401297378,1768116648854,-151.0,0.000249,7]
[401297379,1768116648864,-151.0,0.000249,7]
[401297380,1768116648876,-151.0,0.000249,7]
[401297381,1768116648886,-151.0,0.000249,7]
[401297382,1768116648895,-239.620179,0.000249,7]
[401297383,1768116648905,-728.329358,0.000249,7]
[401297384,1768116648915,-728.329358,0.000249,7]
[401297385,1768116648924,-728.329358,0.000249,7]
[401297386,1768116648934,-728.329358,0.000249,7]
[401297387,1768116648944,-151.0,0.000249,7]
[401297388,1768116648953,-151.0,0.000249,7]
[401297389,1768116648963,-151.0,0.000249,2]
[401297390,1768116648972,-221.073797,0.000249,7]
[401297391,1768116648982,-500.0,0.00024932,2]
[401297392,1768116648993,-1231.30854481,0.00024948,2]
[401297393,1768116649003,-976.92,0.00025,2]
[401297394,1768116649013,-2675.46555144,0.00025,2]
[401297395,1768116649024,-20757.85955183,0.00025,2]
[401297396,1768116649035,-10364.0,0.00025,2]
[401297397,1768116649044,-500.0,0.00025,2]
[401297398,1768116649054,-2074.08935166,0.00025,2]
[401297399,1768116649064,-759.6161654,0.00025,2]
[401297400,1768116649074,-500.0,0.00025069,2]
[401297401,1768116649084,-250.0,0.00025205,2]
[401297402,1768116649094,-500.0,0.00025206,2]
[401297403,1768116649103,-500.0,0.00025343,2]
[401297404,1768116649113,-500.0,0.0002548,2]
[401297405,1768116649123,-2140.41,0.000255,14]
[401297406,1768116649134,-976.92,0.000255,2]
[401297407,1768116649145,-1000.0,0.000255,2]
[401297408,1768116649156,-262.77529652,0.00025534,14]
[401297409,1768116649167,-500.0,0.00025617,2]
[401297410,1768116649178,-350.0,0.00025753,2]
[401297411,1768116649187,-255.99235489,0.00025754,2]
[401297412,1768116649198,-1000.0,0.00025816,10]
[401297413,1768116649208,-1000.0,0.00025816,10]
[401297414,1768116649218,-1000.0,0.00025816,10]
[401297415,1768116649231,-468.6,0.00025823,2]
[401297416,1768116649240,-2000.51544348,0.0002587,2]
[401297417,1768116649250,-976.92,0.00026,2]
[401297418,1768116649258,-53944.89189628,0.00026,30]
[401297419,1768116649268,-16224.21,0.000261,2]
[401297420,1768116649277,-151.0,0.000261,7]
[401297421,1768116649286,-151.0,0.000261,7]
[401297422,1768116649295,-151.0,0.000261,7]
[401297423,1768116649305,-163.811911,0.000261,7]
[401297424,1768116649314,-151.0,0.000263,10]
[401297425,1768116649324,-450.0,0.00026301,2]
[401297426,1768116649333,-976.92,0.000265,2]
[401297427,1768116649343,-550.0,0.00026849,2]
[401297428,1768116649352,-1100.95211996,0.00026872,2]
[401297429,1768116649361,-1041.66666667,0.00027,10]
[401297430,1768116649371,-2999.99999901,0.00027,2]
[401297431,1768116649380,-976.92,0.000271,2]
[401297432,1768116649389,-181.17141011,0.00027137,2]
[401297433,1768116649399,-182.0,0.00027178,23]
[401297434,1768116649409,-1231.30854481,0.00027344,2]
[401297435,1768116649418,-394.08412848,0.0002739,7]
[401297436,1768116649429,-702.10519323,0.00027397,5]
[401297437,1768116649438,-300.0,0.00027397,2]
[401297438,1768116649448,-300.0,0.00027397,2]
[401297439,1768116649458,-300.0,0.00027397,2]
[401297440,1768116649470,-300.0,0.00027397,2]
[401297441,1768116649480,-976.92,0.000276,2]
[401297442,1768116649491,-468.6,0.00027699,3]
[401297443,1768116649578,-2140.41,0.000279,14]
[401297444,1768116649600,-151.0,0.00027945,7]
[401297445,1768116649610,-151.0,0.00027945,7]
[401297446,1768116649620,-151.0,0.00027945,7]
[401297447,1768116649630,-151.0,0.00027945,7]
[401297448,1768116649641,-15330.50011171,0.00028,2]
[401297449,1768116649652,-520.4204079,0.00028,2]
[401297450,1768116649662,-5000.0,0.00028037,2]
[401297451,1768116649672,-976.92,0.000281,2]
[401297452,1768116649681,-210.77216325,0.0002816,5]
[401297453,1768116649691,-976.92,0.000286,2]
[401297454,1768116649700,-429431.6619482,0.0002876,14]
[401297455,1768116649709,-151.0,0.0002876,7]
[401297456,1768116649721,-151.0,0.0002876,7]
[401297457,1768116649732,-221.765393,0.0002876,7]
[401297458,1768116649741,-2377.006451,0.0002876,7]
[401297459,1768116649751,-2377.006451,0.0002876,7]
[401297460,1768116649761,-2377.006451,0.0002876,7]
[401297461,1768116649770,-2377.006451,0.0002876,7]
[401297462,1768116649779,-151.0,0.0002876,7]
[401297463,1768116649790,-151.0,0.0002876,7]
[401297464,1768116649800,-151.0,0.0002876,7]
[401297465,1768116649810,-151.0,0.0002876,7]
[401297466,1768116649820,-728.329358,0.0002876,7]
[401297467,1768116649830,-728.329358,0.0002876,7]
[401297468,1768116649840,-728.329358,0.0002876,7]
[401297469,1768116649850,-728.329358,0.0002876,7]
[401297470,1768116649859,-151.0,0.0002876,7]
[401297471,1768116649869,-151.0,0.0002876,7]
[401297472,1768116649878,-152.162088,0.0002876,2]
[401297473,1768116649888,-151.0,0.000288,19]
[401297474,1768116649897,-211.0,0.00028822,31]
[401297475,1768116649908,-1176.59005187,0.00028872,2]
[401297476,1768116649919,-210.77216324,0.00028896,5]
[401297477,1768116649931,-976.92,0.000291,2]
[401297478,1768116649941,-500.0,0.00029294,7]
[401297479,1768116649950,-1112.0,0.0002949,2]
[401297480,1768116649960,-1112.0,0.00029491,2]
[401297481,1768116649969,-2665.91589527,0.00029513,2]
[401297482,1768116649978,-468.6,0.00029576,4]
[401297483,1768116649988,-976.92,0.000296,2]
[401297484,1768116649998,-1231.30854481,0.0002974,2]
[401297485,1768116650008,-536.72987461,0.00029812,7]
[401297486,1768116650018,-5008.97139185,0.0003,10]
[401297487,1768116650027,-89030.96900453,0.0003,30]
[401297488,1768116650037,-300.0,0.00030137,5]
[401297489,1768116650049,-151.0,0.00030137,14]
[401297490,1768116650058,-2099.00986107,0.0003014,120]
[401297491,1768116650069,-5000.0,0.00030203,2]
[401297492,1768116650079,-1252.22798377,0.00030872,2]
[401297493,1768116650089,-161.0,0.00031014,43]
[401297494,1768116650099,-151.0,0.000314,13]
[401297495,1768116650109,-468.6,0.00031453,5]
[401297496,1768116650121,-1002.20117456,0.00031914,15]
[401297497,1768116650131,-578944.75907056,0.00031998,2]
[401297498,1768116650141,-151.0,0.00031998,31]
[401297499,1768116650153,-151.0,0.00031998,31]
[401297500,1768116650163,-2377.006451,0.00031998,31]
[401297501,1768116650172,-2377.006451,0.00031998,31]
[401297502,1768116650181,-2377.006451,0.00031998,31]
[401297503,1768116650190,-2377.006451,0.00031998,31]
[401297504,1768116650200,-151.0,0.00031998,7]
[401297505,1768116650211,-151.0,0.00031998,7]
[401297506,1768116650221,-151.0,0.00031998,31]
[401297507,1768116650233,-151.0,0.00031998,31]
[401297508,1768116650244,-728.329358,0.00031998,31]
[401297509,1768116650256,-728.329358,0.00031998,31]
[401297510,1768116650267,-728.329358,0.00031998,31]
[401297511,1768116650277,-728.329358,0.00031998,31]
[401297512,1768116650288,-151.0,0.00031998,31]
[401297513,1768116650298,-151.0,0.00031998,31]
[401297514,1768116650308,-162.09527137,0.00032,120]
[401297515,1768116650317,-1231.30854481,0.00032136,2]
[401297516,1768116650328,-16224.21,0.000323,2]
[401297517,1768116650337,-160.002934,0.000323,31]
[401297518,1768116650348,-151.0,0.000323,31]
[401297519,1768116650358,-151.0,0.000323,31]
[401297520,1768116650367,-5000.0,0.0003237,2]
[401297521,1768116650377,-1000.0,0.000324,120]
[401297522,1768116650387,-1000.0,0.00032438,14]
[401297523,1768116650396,-314.9,0.000327,7]
[401297524,1768116650407,-1327.86591568,0.00032872,2]
[401297525,1768116650418,-999.0,0.00032876,120]
[401297526,1768116650427,-500.0,0.00032877,8]
[401297527,1768116650436,-300.0,0.00032877,5]
[401297528,1768116650449,-450.0,0.00032877,5]
[401297529,1768116650460,-2818.26,0.000329,6]
[401297530,1768116650470,-2140.39,0.000329,6]
[401297531,1768116650481,-378.93681875,0.00033,8]
[401297532,1768116650492,-1762.55867719,0.00033,4]
[401297533,1768116650505,-174.0,0.00033205,59]
[401297534,1768116650515,-1045039.0068,0.0003322,30]
[401297535,1768116650525,-200.586455,0.0003322,31]
[401297536,1768116650536,-151.0,0.0003322,31]
[401297537,1768116650545,-151.0,0.0003322,31]
[401297538,1768116650554,-151.0,0.0003322,31]
[401297539,1768116650563,-151.0,0.0003322,31]
[401297540,1768116650572,-151.0,0.0003322,31]
[401297541,1768116650581,-151.0,0.0003322,31]
[401297542,1768116650591,-255.738763,0.0003322,31]
[401297543,1768116650599,-151.0,0.0003322,31]
[401297544,1768116650609,-151.0,0.0003322,31]
[401297545,1768116650619,-282.933111,0.0003322,31]
[401297546,1768116650630,-157.155966,0.0003322,31]
[401297547,1768116650640,-156.461494,0.0003322,31]
[401297548,1768116650651,-151.0,0.0003322,31]
[401297549,1768116650661,-151.0,0.0003322,31]
[401297550,1768116650671,-151.0,0.0003322,31]
[401297551,1768116650680,-151.0,0.0003322,31]
[401297552,1768116650689,-151.0,0.0003322,31]
[401297553,1768116650699,-151.0,0.0003322,31]
[401297554,1768116650710,-151.0,0.0003322,31]
[401297555,1768116650720,-382.637039,0.0003322,31]
[401297556,1768116650730,-382.637039,0.0003322,31]
[401297557,1768116650739,-382.637039,0.0003322,31]
[401297558,1768116650748,-382.637039,0.0003322,31]
[401297559,1768116650758,-151.0,0.0003322,31]
[401297560,1768116650767,-243.363595,0.0003322,31]
[401297561,1768116650776,-153.659043,0.0003322,31]
[401297562,1768116650785,-700.258706,0.0003322,31]
[401297563,1768116650794,-700.258706,0.0003322,31]
[401297564,1768116650804,-189.468115,0.0003322,31]